fUSD/lending_fUSD_20240119
["ID","MTS","AMOUNT","RATE_DAILY","PERIOD"]
[312222085,1705693862345,-2414.03,0.00025205,2]
[312222086,1705693862355,-3012.69,0.00025205,2]
[312222087,1705693862364,-500.0,0.00025205,2]
[312222088,1705693862374,-1049.52,0.00025205,2]
[312222089,1705693862386,-500.0,0.00025205,2]
[312222090,1705693862396,-1539.41,0.00025205,2]
[312222091,1705693862406,-1065.08,0.00025205,2]
[312222092,1705693862416,-500.0,0.00025205,2]
[312222093,1705693862426,-2998.92,0.00025205,2]
[312222094,1705693862436,-726.75,0.00025205,2]
[312222095,1705693862446,-500.0,0.00025205,2]
[312222096,1705693862456,-2705.22,0.00025205,2]
[312222097,1705693862466,-295.3,0.00025205,2]
[312222098,1705693862476,-1147.13,0.00025205,2]
[312222099,1705693862486,-500.0,0.00025205,2]
[312222100,1705693862496,-500.0,0.00025205,2]
[312222101,1705693862506,-500.0,0.00025205,2]
[312222102,1705693862515,-524.25,0.00025205,2]
[312222103,1705693862525,-1279.96,0.00025205,2]
[312222104,1705693862536,-500.0,0.00025205,2]
[312222105,1705693862546,-500.0,0.00025205,2]
[312222106,1705693862556,-500.0,0.00025205,2]
[312222107,1705693862566,-549.26,0.00025205,2]
[312222108,1705693862576,-500.0,0.00025205,2]
[312222109,1705693862585,-500.0,0.00025205,2]
[312222110,1705693862595,-573.95,0.00025205,2]
[312222111,1705693862605,-258.04399919,0.00025205,2]
[312222112,1705693862615,-500.0,0.00025205,2]
[312222113,1705693862625,-500.0,0.00025205,2]
[312222114,1705693862635,-892.38,0.00025205,2]
[312222115,1705693862645,-575.11,0.00025205,2]
[312222116,1705693862654,-500.0,0.00025205,2]
[312222117,1705693862664,-500.0,0.00025205,2]
[312222118,1705693862674,-1314.31,0.00025205,2]
[312222119,1705693862684,-970.57,0.00025205,2]
[312222120,1705693862695,-500.0,0.00025205,2]
[312222121,1705693862706,-500.0,0.00025205,2]
[312222122,1705693862716,-665.66,0.00025205,2]
[312222123,1705693862916,-500.0,0.00025205,2]
[312222124,1705693862928,-500.0,0.00025205,2]
[312222125,1705693862937,-1312.06,0.00025205,2]
[312222126,1705693862946,-500.0,0.00025205,2]
[312222127,1705693862956,-500.0,0.00025205,2]
[312222128,1705693862965,-500.0,0.00025205,2]
[312222129,1705693862975,-1440.41,0.00025205,2]
[312222130,1705693862984,-500.0,0.00025205,2]
[312222131,1705693862994,-500.0,0.00025205,2]
[312222132,1705693863005,-801.63,0.00025205,2]
[312222133,1705693863016,-500.0,0.00025205,2]
[312222134,1705693863026,-500.0,0.00025205,2]
[312222135,1705693863037,-500.0,0.00025205,2]
[312222136,1705693863046,-1364.63,0.00025205,2]
[312222137,1705693863055,-500.0,0.00025205,2]
[312222138,1705693863064,-500.0,0.00025205,2]
[312222139,1705693863074,-1869.93,0.00025205,2]
[312222140,1705693863083,-500.0,0.00025205,2]
[312222141,1705693863094,-500.0,0.00025205,2]
[312222142,1705693863103,-665.4,0.00025205,2]
[312222143,1705693863113,-500.0,0.00025205,2]
[312222144,1705693863122,-621.36,0.00025205,2]
[312222145,1705693863132,-500.0,0.00025205,2]
[312222146,1705693863141,-500.0,0.00025205,2]
[312222147,1705693863151,-500.0,0.00025205,2]
[312222148,1705693863161,-849.71,0.00025205,2]
[312222149,1705693863171,-500.0,0.00025205,2]
[312222150,1705693863180,-2620.86,0.00025205,2]
[312222151,1705693863189,-637.71,0.00025205,2]
[312222152,1705693863198,-500.0,0.00025205,2]
[312222153,1705693863208,-500.0,0.00025205,2]
[312222154,1705693863218,-1448.26,0.00025205,2]
[312222155,1705693863227,-4987.45,0.00025205,2]
[312222156,1705693863237,-500.0,0.00025205,2]
[312222157,1705693863247,-500.0,0.00025205,2]
[312222158,1705693863261,-377.81582021,0.00025205,2]
[312222159,1705693863270,-374.67,0.00025205,2]
[312222160,1705693863280,-531.02,0.00025205,2]
[312222161,1705693863292,-500.0,0.00025205,2]
[312222162,1705693863303,-500.0,0.00025205,2]
[312222163,1705693863313,-500.0,0.00025205,2]
[312222164,1705693863324,-500.0,0.00025205,2]
[312222165,1705693863333,-500.0,0.00025205,2]
[312222166,1705693863343,-803.95,0.00025205,2]
[312222167,1705693863354,-1552.1,0.00025205,2]
[312222168,1705693863363,-500.0,0.00025205,2]
[312222169,1705693863374,-500.0,0.00025205,2]
[312222170,1705693863386,-500.0,0.00025205,2]
[312222171,1705693863396,-500.0,0.00025205,2]
[312222172,1705693863405,-896.77,0.00025205,2]
[312222173,1705693863415,-650.24,0.00025205,2]
[312222174,1705693863427,-313.93,0.00025205,2]
[312222175,1705693863436,-500.0,0.00025205,2]
[312222176,1705693863446,-722.38,0.00025205,2]
[312222177,1705693863456,-568.74,0.00025205,2]
[312222178,1705693863465,-634.08,0.00025205,2]
[312222179,1705693863475,-500.0,0.00025205,2]
[312222180,1705693863485,-500.0,0.00025205,2]
[312222181,1705693863494,-500.0,0.00025205,2]
[312222182,1705693863505,-780.36,0.00025205,2]
[312222183,1705693863515,-500.0,0.00025205,2]
[312222184,1705693863525,-500.0,0.00025205,2]
[312222185,1705693863537,-500.0,0.00025205,2]
[312222186,1705693863547,-500.0,0.00025205,2]
[312222187,1705693863556,-793.35,0.00025205,2]
[312222188,1705693863567,-1671.21,0.00025205,2]
[312222189,1705693863581,-500.0,0.00025205,2]
[312222190,1705693863594,-500.0,0.00025205,2]
[312222191,1705693863604,-799.48,0.00025205,2]
[312222192,1705693863615,-934.16,0.00025205,2]
[312222193,1705693863625,-500.0,0.00025205,2]
[312222194,1705693863635,-1066.92,0.00025205,2]
[312222195,1705693863645,-2127.17,0.00025205,2]
[312222196,1705693863655,-500.0,0.00025205,2]
[312222197,1705693863665,-1404.62,0.00025205,2]
[312222198,1705693863675,-500.0,0.00025205,2]
[312222199,1705693863685,-557.49,0.00025205,2]
[312222200,1705693863694,-500.0,0.00025205,2]
[312222201,1705693863703,-1384.57,0.00025205,2]
[312222202,1705693863714,-500.0,0.00025205,2]
[312222203,1705693863724,-500.0,0.00025205,2]
[312222204,1705693863734,-500.0,0.00025205,2]
[312222205,1705693863743,-500.0,0.00025205,2]
[312222206,1705693863754,-599.28,0.00025205,2]
[312222207,1705693863766,-500.0,0.00025205,2]
[312222208,1705693863776,-1299.85,0.00025205,2]
[312222209,1705693863787,-2093.33,0.00025205,2]
[312222210,1705693863797,-500.0,0.00025205,2]
[312222211,1705693863806,-500.0,0.00025205,2]
[312222212,1705693863815,-500.0,0.00025205,2]
[312222213,1705693863825,-500.0,0.00025205,2]
[312222214,1705693863834,-500.0,0.00025205,2]
[312222215,1705693863845,-1514.23,0.00025205,2]
[312222216,1705693863854,-500.0,0.00025205,2]
[312222217,1705693863864,-500.0,0.00025205,2]
[312222218,1705693863873,-500.0,0.00025205,2]
[312222219,1705693863883,-330.63,0.00025205,2]
[312222220,1705693863893,-158.1,0.00025223,2]
[312222221,1705693863902,-480.37,0.00025227,2]
[312222222,1705693863912,-1896.15842977,0.00025251,2]
[312222223,1705693863922,-413.22,0.00025269,2]
[312222224,1705693863932,-596.64,0.00025295,2]
[312222225,1705693863941,-351.15,0.00025304,2]
[312222226,1705693863952,-165.93960689,0.0002531,2]
[312222227,1705693863962,-184.28,0.00025335,2]
[312222228,1705693863971,-449.0,0.0002536,2]
[312222229,1705693863981,-946.0,0.0002536,2]
[312222230,1705693863991,-836.0,0.0002536,2]
[312222231,1705693864000,-231.743,0.0002536,2]
[312222232,1705693864009,-214.0,0.0002536,2]
[312222233,1705693864019,-997.0,0.0002536,2]
[312222234,1705693864029,-426.0,0.0002536,2]
[312222235,1705693864039,-319.0,0.0002536,2]
[312222236,1705693864049,-508.704,0.0002536,2]
[312222237,1705693864059,-235.0,0.0002536,2]
[312222238,1705693864069,-5438.874,0.0002536,2]
[312222239,1705693864079,-932.927,0.0002536,2]
[312222240,1705693864089,-2274.0,0.0002536,2]
[312222241,1705693864098,-150.0,0.0002536,2]
[312222242,1705693864108,-153.255,0.0002536,2]
[312222243,1705693864119,-250.0,0.0002536,2]
[312222244,1705693864129,-157.083,0.0002536,2]
[312222245,1705693864138,-162.808,0.0002536,2]
[312222246,1705693864148,-150.258,0.0002536,2]
[312222247,1705693864157,-259.65,0.0002536,2]
[312222248,1705693864166,-150.0,0.0002536,2]
[312222249,1705693864176,-206.666,0.0002536,2]
[312222250,1705693864185,-5208.80771255,0.00025405,2]
[312222251,1705693864195,-413.22,0.00025412,2]
[312222252,1705693864205,-300.0,0.00025478,2]
[312222253,1705693864214,-300.0,0.00025478,2]
[312222254,1705693864224,-300.0,0.00025478,2]
[312222255,1705693864233,-300.0,0.00025478,2]
[312222256,1705693864242,-300.0,0.00025478,2]
[312222257,1705693864252,-189.24943045,0.00025478,2]
[312222258,1705693864261,-500.0,0.00025478,2]
[312222259,1705693864271,-500.0,0.00025479,2]
[312222260,1705693864281,-469.22436524,0.00025479,2]
[312222261,1705693864291,-500.0,0.00025479,2]
[312222262,1705693864303,-598.5,0.00025479,2]
[312222263,1705693864313,-500.0,0.00025479,2]
[312222264,1705693864322,-482.01,0.00025479,2]
[312222265,1705693864331,-536.72506807,0.00025479,2]
[312222266,1705693864341,-500.0,0.00025479,2]
[312222267,1705693864351,-500.0,0.00025479,2]
[312222268,1705693864360,-500.0,0.00025479,2]
[312222269,1705693864369,-500.0,0.00025479,2]
[312222270,1705693864379,-500.0,0.00025479,2]
[312222271,1705693864389,-500.0,0.00025479,2]
[312222272,1705693864398,-500.0,0.00025479,2]
[312222273,1705693864407,-500.0,0.00025479,2]
[312222274,1705693864417,-500.0,0.00025479,2]
[312222275,1705693864427,-572.87,0.00025479,2]
[312222276,1705693864436,-500.0,0.00025479,2]
[312222277,1705693864446,-608.92,0.00025479,2]
[312222278,1705693864455,-483.54,0.00025479,2]
[312222279,1705693864465,-500.0,0.00025479,2]
[312222280,1705693864475,-500.0,0.00025479,2]
[312222281,1705693864484,-500.0,0.00025479,2]
[312222282,1705693864494,-527.0740764,0.00025479,2]
[312222283,1705693864503,-500.0,0.00025479,2]
[312222284,1705693864512,-585.12,0.00025479,2]
[312222285,1705693864521,-500.0,0.00025479,2]
[312222286,1705693864531,-169.35715554,0.00025479,2]
[312222287,1705693864541,-500.0,0.00025479,2]
[312222288,1705693864549,-500.0,0.00025479,2]
[312222289,1705693864558,-500.0,0.00025479,2]
[312222290,1705693864568,-449.45,0.00025479,2]
[312222291,1705693864578,-500.0,0.00025479,2]
[312222292,1705693864587,-500.0,0.00025479,2]
[312222293,1705693864596,-500.0,0.00025479,2]
[312222294,1705693864605,-500.0,0.00025479,2]
[312222295,1705693864614,-328.4661172,0.00025479,2]
[312222296,1705693864624,-327.93,0.00025479,2]
[312222297,1705693864633,-474.65,0.00025479,2]
[312222298,1705693864643,-513.34,0.00025479,2]
[312222299,1705693864652,-500.0,0.00025479,2]
[312222300,1705693864661,-582.84,0.00025479,2]
[312222301,1705693864670,-500.0,0.00025479,2]
[312222302,1705693864679,-244.21,0.00025479,2]
[312222303,1705693864689,-500.0,0.00025479,2]
[312222304,1705693864698,-500.0,0.00025479,2]
[312222305,1705693864707,-500.0,0.00025479,2]
[312222306,1705693864715,-500.0,0.00025479,2]
[312222307,1705693864725,-196.84,0.00025479,2]
[312222308,1705693864734,-500.0,0.00025479,2]
[312222309,1705693864743,-525.68,0.00025479,2]
[312222310,1705693864752,-500.0,0.00025479,2]
[312222311,1705693864762,-500.0,0.00025479,2]
[312222312,1705693864771,-500.0,0.00025479,2]
[312222313,1705693864780,-500.0,0.00025479,2]
[312222314,1705693864790,-500.0,0.00025479,2]
[312222315,1705693864800,-500.0,0.00025479,2]
[312222316,1705693864809,-194.9,0.00025479,2]
[312222317,1705693864818,-500.0,0.00025479,2]
[312222318,1705693864827,-500.0,0.00025479,2]
[312222319,1705693864836,-500.0,0.00025479,2]
[312222320,1705693864846,-500.0,0.00025479,2]
[312222321,1705693864855,-500.0,0.00025479,2]
[312222322,1705693864865,-500.0,0.00025479,2]
[312222323,1705693864874,-500.0,0.00025479,2]
[312222324,1705693864883,-500.0,0.00025479,2]
[312222325,1705693864892,-500.0,0.00025479,2]
[312222326,1705693864901,-500.0,0.00025479,2]
[312222327,1705693864912,-617.42,0.00025479,2]
[312222328,1705693864921,-500.0,0.00025479,2]
[312222329,1705693864930,-549.86,0.00025479,2]
[312222330,1705693864939,-500.0,0.00025479,2]
[312222331,1705693864948,-500.0,0.00025479,2]
[312222332,1705693864957,-500.0,0.00025479,2]
[312222333,1705693864966,-500.0,0.00025479,2]
[312222334,1705693864975,-500.0,0.00025479,2]
[312222335,1705693864985,-500.0,0.00025479,2]
[312222336,1705693864994,-500.0,0.00025479,2]
[312222337,1705693865004,-233.17,0.00025479,2]
[312222338,1705693865015,-500.0,0.00025479,2]
[312222339,1705693865027,-543.9,0.00025479,2]
[312222340,1705693865046,-515.29,0.00025479,2]
[312222341,1705693865066,-500.0,0.00025479,2]
[312222342,1705693865086,-500.0,0.00025479,2]
[312222343,1705693865106,-500.0,0.00025479,2]
[312222344,1705693865116,-179.97987626,0.00025479,2]
[312222345,1705693865127,-546.53,0.00025479,2]
[312222346,1705693865137,-476.87,0.00025479,2]
[312222347,1705693865147,-150.0,0.00025479,2]
[312222348,1705693865157,-528.89,0.00025479,2]
[312222349,1705693865167,-185.52,0.00025479,2]
[312222350,1705693865177,-201.19,0.00025479,2]
[312222351,1705693865186,-500.0,0.00025479,2]
[312222352,1705693865196,-500.0,0.00025479,2]
[312222353,1705693865206,-500.0,0.00025479,2]
[312222354,1705693865216,-204.42,0.00025479,2]
[312222355,1705693865226,-2365.35,0.00025479,2]
[312222356,1705693865236,-450.76,0.00025479,2]
[312222357,1705693865246,-327.6389151,0.00025479,2]
[312222358,1705693865255,-500.0,0.00025479,2]
[312222359,1705693865265,-500.0,0.00025479,2]
[312222360,1705693865276,-500.0,0.00025479,2]
[312222361,1705693865286,-500.0,0.00025479,2]
[312222362,1705693865298,-500.0,0.00025479,2]
[312222363,1705693865313,-500.0,0.00025479,2]
[312222364,1705693865323,-500.0,0.00025479,2]
[312222365,1705693865333,-500.0,0.00025479,2]
[312222366,1705693865343,-500.0,0.00025479,2]
[312222367,1705693865352,-506.13,0.00025479,2]
[312222368,1705693865362,-267.08,0.00025479,2]
[312222369,1705693865374,-500.0,0.00025479,2]
[312222370,1705693865385,-500.0,0.00025479,2]
[312222371,1705693865395,-529.61826906,0.00025479,2]
[312222372,1705693865405,-500.0,0.00025479,2]
[312222373,1705693865415,-500.0,0.00025479,2]
[312222374,1705693865425,-500.0,0.00025479,2]
[312222375,1705693865435,-500.0,0.00025479,2]
[312222376,1705693865445,-500.0,0.00025479,2]
[312222377,1705693865454,-500.0,0.00025479,2]
[312222378,1705693865465,-500.0,0.00025479,2]
[312222379,1705693865476,-500.0,0.00025479,2]
[312222380,1705693865486,-500.0,0.00025479,2]
[312222381,1705693865496,-500.0,0.00025479,2]
[312222382,1705693865507,-500.0,0.00025479,2]
[312222383,1705693865518,-620.75,0.00025479,2]
[312222384,1705693865528,-500.0,0.00025479,2]
[312222385,1705693865540,-500.0,0.00025479,2]
[312222386,1705693865550,-500.0,0.00025479,2]
[312222387,1705693865560,-500.0,0.00025479,2]
[312222388,1705693865571,-500.0,0.00025479,2]
[312222389,1705693865582,-500.0,0.00025479,2]
[312222390,1705693865592,-500.0,0.00025479,2]
[312222391,1705693865602,-500.0,0.00025479,2]
[312222392,1705693865611,-500.0,0.00025479,2]
[312222393,1705693865621,-547.28,0.00025479,2]
[312222394,1705693865632,-500.0,0.00025479,2]
[312222395,1705693865642,-500.0,0.00025479,2]
[312222396,1705693865652,-500.0,0.00025479,2]
[312222397,1705693865663,-928.77,0.00025479,2]
[312222398,1705693865673,-500.0,0.00025479,2]
[312222399,1705693865683,-500.0,0.00025479,2]
[312222400,1705693865694,-1861.12,0.00025479,2]
[312222401,1705693865705,-500.0,0.00025479,2]
[312222402,1705693865715,-500.0,0.00025479,2]
[312222403,1705693865725,-917.31,0.00025479,2]
[312222404,1705693865735,-1764.9,0.00025479,2]
[312222405,1705693865745,-500.0,0.00025479,2]
[312222406,1705693865755,-521.62,0.00025479,2]
[312222407,1705693865765,-1550.69,0.00025479,2]
[312222408,1705693865774,-500.0,0.00025479,2]
[312222409,1705693865789,-1130.94,0.00025479,2]
[312222410,1705693865798,-500.0,0.00025479,2]
[312222411,1705693865808,-623.05,0.00025479,2]
[312222412,1705693865817,-771.68,0.00025479,2]
[312222413,1705693865827,-500.0,0.00025479,2]
[312222414,1705693865837,-500.0,0.00025479,2]
[312222415,1705693865846,-500.0,0.00025479,2]
[312222416,1705693865856,-503.49,0.00025479,2]
[312222417,1705693865866,-500.0,0.00025479,5]
[312222418,1705693865875,-500.0,0.00025479,2]
[312222419,1705693865885,-275.96,0.00025479,2]
[312222420,1705693865895,-500.0,0.00025479,5]
[312222421,1705693865905,-500.0,0.00025479,2]
[312222422,1705693865914,-500.0,0.00025479,2]
[312222423,1705693865925,-500.0,0.00025479,2]
[312222424,1705693865935,-500.0,0.00025479,2]
[312222425,1705693865945,-1084.24,0.00025479,2]
[312222426,1705693865954,-1823.68,0.00025479,2]
[312222427,1705693865964,-500.0,0.00025479,2]
[312222428,1705693865974,-3335.07,0.00025479,2]
[312222429,1705693865983,-500.0,0.00025479,2]
[312222430,1705693865993,-500.0,0.00025479,2]
[312222431,1705693866002,-372.92866545,0.00025479,2]
[312222432,1705693866012,-1731.4,0.00025479,2]
[312222433,1705693866022,-500.0,0.00025479,2]
[312222434,1705693866032,-2037.15,0.00025479,2]
[312222435,1705693866045,-2037.79,0.00025479,2]
[312222436,1705693866055,-500.0,0.00025479,2]
[312222437,1705693866064,-1807.75,0.00025479,2]
[312222438,1705693866074,-680.7,0.00025479,2]
[312222439,1705693866084,-1014.02,0.00025479,2]
[312222440,1705693866094,-500.0,0.00025479,2]
[312222441,1705693866105,-1949.96,0.00025479,2]
[312222442,1705693866116,-500.0,0.00025479,2]
[312222443,1705693866126,-500.0,0.00025479,2]
[312222444,1705693866136,-582.25,0.00025479,2]
[312222445,1705693866146,-659.73,0.00025479,2]
[312222446,1705693866155,-500.0,0.00025479,2]
[312222447,1705693866165,-809.52,0.00025479,2]
[312222448,1705693866175,-3033.49,0.00025479,2]
[312222449,1705693866184,-500.0,0.00025479,2]
[312222450,1705693866194,-1580.72,0.00025479,2]
[312222451,1705693866204,-355.24,0.00025479,2]
[312222452,1705693866214,-500.0,0.00025479,2]
[312222453,1705693866224,-204.13,0.00025479,2]
[312222454,1705693866234,-2228.23,0.00025479,2]
[312222455,1705693866244,-500.0,0.00025479,2]
[312222456,1705693866254,-500.0,0.00025479,2]
[312222457,1705693866264,-2403.96,0.00025479,2]
[312222458,1705693866274,-715.15,0.00025479,2]
[312222459,1705693866287,-1528.36,0.00025479,2]
[312222460,1705693866297,-466.88,0.00025479,2]
[312222461,1705693866309,-500.0,0.00025479,2]
[312222462,1705693866320,-707.27,0.00025479,2]
[312222463,1705693866330,-500.0,0.00025479,2]
[312222464,1705693866340,-839.61,0.00025479,2]
[312222465,1705693866351,-1399.25,0.00025479,2]
[312222466,1705693866361,-491.94468612,0.00025479,2]
[312222467,1705693866371,-500.0,0.00025479,2]
[312222468,1705693866381,-500.0,0.00025479,2]
[312222469,1705693866391,-500.0,0.00025479,2]
[312222470,1705693866401,-530.2,0.00025479,2]
[312222471,1705693866411,-500.0,0.00025479,2]
[312222472,1705693866420,-500.0,0.00025479,2]
[312222473,1705693866430,-500.0,0.00025479,2]
[312222474,1705693866439,-500.0,0.00025479,2]
[312222475,1705693866449,-500.0,0.00025479,2]
[312222476,1705693866458,-702.87,0.00025479,2]
[312222477,1705693866468,-1669.84,0.00025479,2]
[312222478,1705693866477,-500.0,0.00025479,2]
[312222479,1705693866487,-500.0,0.00025479,2]
[312222480,1705693866497,-500.0,0.00025479,2]
[312222481,1705693866507,-633.49,0.00025479,2]
[312222482,1705693866517,-577.93,0.00025479,2]
[312222483,1705693866526,-500.0,0.00025479,2]
[312222484,1705693866536,-500.0,0.00025479,2]
[312222485,1705693866545,-3055.09,0.00025479,2]
[312222486,1705693866555,-4886.42,0.00025479,2]
[312222487,1705693866564,-500.0,0.00025479,2]
[312222488,1705693866757,-500.0,0.00025479,2]
[312222489,1705693866767,-500.0,0.00025479,2]
[312222490,1705693866777,-500.0,0.00025479,2]
[312222491,1705693866787,-1081.81,0.00025479,2]
[312222492,1705693866797,-500.0,0.00025479,2]
[312222493,1705693866807,-2414.03,0.00025479,2]
[312222494,1705693866816,-3012.69,0.00025479,2]
[312222495,1705693866825,-178.74051144,0.00025479,2]
[312222496,1705693866835,-1049.52,0.00025479,2]
[312222497,1705693866844,-500.0,0.00025479,2]
[312222498,1705693866854,-1539.41,0.00025479,2]
[312222499,1705693866864,-1065.08,0.00025479,2]
[312222500,1705693866873,-500.0,0.00025479,2]
[312222501,1705693866883,-2998.92,0.00025479,2]
[312222502,1705693866892,-726.75,0.00025479,2]
[312222503,1705693866909,-2705.22,0.00025479,2]
[312222504,1705693866919,-1147.13,0.00025479,2]
[312222505,1705693866931,-617.16187943,0.00025479,2]
[312222506,1705693866945,-500.0,0.00025479,2]
[312222507,1705693866955,-500.0,0.00025479,2]
[312222508,1705693866966,-1279.96,0.00025479,2]
[312222509,1705693866977,-500.0,0.00025479,2]
[312222510,1705693866987,-480.82,0.00025479,2]
[312222511,1705693866997,-500.0,0.00025479,2]
[312222512,1705693867008,-549.26,0.00025479,2]
[312222513,1705693867017,-500.0,0.00025479,2]
[312222514,1705693867026,-500.0,0.00025479,2]
[312222515,1705693867037,-500.0,0.00025479,2]
[312222516,1705693867047,-500.0,0.00025479,2]
[312222517,1705693867061,-892.38,0.00025479,2]
[312222518,1705693867071,-575.11,0.00025479,2]
[312222519,1705693867086,-500.0,0.00025479,2]
[312222520,1705693867098,-500.0,0.00025479,2]
[312222521,1705693867107,-970.57,0.00025479,2]
[312222522,1705693867117,-1314.31,0.00025479,2]
[312222523,1705693867135,-634.19,0.00025479,2]
[312222524,1705693867145,-500.0,0.00025479,2]
[312222525,1705693867155,-665.66,0.00025479,2]
[312222526,1705693867165,-500.0,0.00025479,2]
[312222527,1705693867175,-1312.06,0.00025479,2]
[312222528,1705693867184,-641.31,0.00025479,2]
[312222529,1705693867194,-500.0,0.00025479,2]
[312222530,1705693867204,-500.0,0.00025479,2]
[312222531,1705693867214,-1440.41,0.00025479,2]
[312222532,1705693867225,-500.0,0.00025479,2]
[312222533,1705693867236,-500.0,0.00025479,2]
[312222534,1705693867246,-801.63,0.00025479,2]
[312222535,1705693867257,-500.0,0.00025479,2]
[312222536,1705693867266,-500.0,0.00025479,2]
[312222537,1705693867276,-500.0,0.00025479,2]
[312222538,1705693867287,-1364.63,0.00025479,2]
[312222539,1705693867297,-500.0,0.00025479,2]
[312222540,1705693867318,-1869.93,0.00025479,2]
[312222541,1705693867333,-500.0,0.00025479,2]
[312222542,1705693867347,-500.0,0.00025479,2]
[312222543,1705693867360,-665.4,0.00025479,2]
[312222544,1705693867370,-500.0,0.00025479,2]
[312222545,1705693867380,-500.0,0.00025479,2]
[312222546,1705693867390,-283.21,0.00025479,2]
[312222547,1705693867401,-500.0,0.00025479,2]
[312222548,1705693867410,-849.71,0.00025479,2]
[312222549,1705693867420,-500.0,0.00025479,2]
[312222550,1705693867429,-2620.86,0.00025479,2]
[312222551,1705693867439,-637.71,0.00025479,2]
[312222552,1705693867449,-500.0,0.00025479,2]
[312222553,1705693867458,-1448.26,0.00025479,2]
[312222554,1705693867468,-4987.45,0.00025479,2]
[312222555,1705693867478,-500.0,0.00025479,2]
[312222556,1705693867488,-320.97,0.00025479,2]
[312222557,1705693867497,-531.02,0.00025479,2]
[312222558,1705693867506,-500.0,0.00025479,2]
[312222559,1705693867516,-500.0,0.00025479,2]
[312222560,1705693867525,-500.0,0.00025479,2]
[312222561,1705693867534,-289.11,0.00025479,2]
[312222562,1705693867545,-500.0,0.00025479,2]
[312222563,1705693867556,-803.95,0.00025479,2]
[312222564,1705693867565,-1552.1,0.00025479,2]
[312222565,1705693867574,-516.49,0.00025479,2]
[312222566,1705693867584,-500.0,0.00025479,2]
[312222567,1705693867594,-500.0,0.00025479,2]
[312222568,1705693867603,-896.77,0.00025479,2]
[312222569,1705693867615,-650.24,0.00025479,2]
[312222570,1705693867624,-500.0,0.00025479,2]
[312222571,1705693867634,-722.38,0.00025479,2]
[312222572,1705693867643,-568.74,0.00025479,2]
[312222573,1705693867652,-500.0,0.00025479,2]
[312222574,1705693867662,-500.0,0.00025479,2]
[312222575,1705693867671,-780.36,0.00025479,2]
[312222576,1705693867681,-500.0,0.00025479,2]
[312222577,1705693867691,-500.0,0.00025479,2]
[312222578,1705693867700,-500.0,0.00025479,2]
[312222579,1705693867710,-793.35,0.00025479,2]
[312222580,1705693867720,-1671.21,0.00025479,2]
[312222581,1705693867730,-500.0,0.00025479,2]
[312222582,1705693867740,-799.48,0.00025479,2]
[312222583,1705693867750,-934.16,0.00025479,2]
[312222584,1705693867759,-500.0,0.00025479,2]